[Event "*** Titled Tuesday Blitz"]
[Site "Chess.com"]
[Date "2020.03.03"]
[Round "4"]
[White "BeanScreen"]
[Black "Omk124"]
[Result "0-1"]
[WhiteElo "2647"]
[BlackElo "2464"]
[TimeControl "180+1"]
[EndTime "9:42:44 PST"]
[Termination "Omk124 won by resignation"]

1. e4 {[%clk 0:03:00.3]} 1... c5 {[%clk 0:02:59.7]} 2. Nf3 {[%clk 0:03:00.3]}
2... d6 {[%clk 0:03:00]} 3. d4 {[%clk 0:03:00.9]} 3... cxd4 {[%clk 0:03:00.6]}
4. Nxd4 {[%clk 0:03:01.8]} 4... Nf6 {[%clk 0:03:00.8]} 5. Nc3 {[%clk 0:03:02.5]}
5... a6 {[%clk 0:03:01.4]} 6. Be3 {[%clk 0:03:03]} 6... e5 {[%clk 0:03:01.5]} 7.
Nb3 {[%clk 0:03:03.7]} 7... Be7 {[%clk 0:03:01.3]} 8. h3 {[%clk 0:03:04]} 8...
O-O {[%clk 0:03:01]} 9. f4 {[%clk 0:03:04.6]} 9... b5 {[%clk 0:02:57.3]} 10. Qf3
{[%clk 0:02:54.8]} 10... Bb7 {[%clk 0:02:56.6]} 11. O-O-O {[%clk 0:02:53.6]}
11... Nbd7 {[%clk 0:02:52.9]} 12. f5 {[%clk 0:02:45.1]} 12... Rc8 {[%clk
0:02:51]} 13. Nd5 {[%clk 0:02:36.9]} 13... Nxd5 {[%clk 0:02:49]} 14. exd5 {[%clk
0:02:37.8]} 14... Qc7 {[%clk 0:02:48.8]} 15. Na1 {[%clk 0:01:49.6]} 15... Nf6
{[%clk 0:02:44.3]} 16. g4 {[%clk 0:01:49.3]} 16... e4 {[%clk 0:02:39.8]} 17. Qg2
{[%clk 0:01:48.9]} 17... Nxd5 {[%clk 0:02:37.7]} 18. Bd4 {[%clk 0:01:34.7]}
18... Bf6 {[%clk 0:02:21.9]} 19. Bxf6 {[%clk 0:01:16.4]} 19... Nxf6 {[%clk
0:02:21.8]} 20. g5 {[%clk 0:01:16.3]} 20... e3 {[%clk 0:02:19.4]} 21. Qg1 {[%clk
0:01:12.3]} 21... Nd5 {[%clk 0:01:55.4]} 22. Rh2 {[%clk 0:01:03.5]} 22... Qa5
{[%clk 0:01:50.2]} 23. Kb1 {[%clk 0:01:02.6]} 23... Nf4 {[%clk 0:01:40.6]} 24.
Nb3 {[%clk 0:00:52.3]} 24... Qb4 {[%clk 0:01:36.8]} 25. Qxe3 {[%clk 0:00:40.8]}
25... Rfe8 {[%clk 0:01:33.1]} 26. Qg3 {[%clk 0:00:38.3]} 26... Qe4 {[%clk
0:01:26.6]} 27. f6 {[%clk 0:00:27.9]} 27... g6 {[%clk 0:01:26.4]} 28. Rhd2
{[%clk 0:00:21.5]} 28... Qf5 {[%clk 0:01:11.3]} 29. Rf2 {[%clk 0:00:20.6]} 29...
Nh5 {[%clk 0:00:59.4]} 30. Qh4 {[%clk 0:00:08.6]} 30... Qe6 {[%clk 0:00:47.3]}
31. Bd3 {[%clk 0:00:07.7]} 31... Be4 {[%clk 0:00:44]} 32. Re2 {[%clk 0:00:07.4]}
32... Bxd3 {[%clk 0:00:33]} 33. Rxe6 {[%clk 0:00:05.3]} 33... Bxc2+ {[%clk
0:00:33.6]} 34. Ka1 {[%clk 0:00:03.2]} 34... Rxe6 {[%clk 0:00:34.1]} 35. Rc1
{[%clk 0:00:03.6]} 35... Rc4 {[%clk 0:00:30.5]} 36. Nd4 {[%clk 0:00:03.4]} 36...
Re4 {[%clk 0:00:26.6]} 37. Qg3 {[%clk 0:00:01.8]} 37... Rcxd4 {[%clk 0:00:24.9]}
38. b3 {[%clk 0:00:02]} 38... Rd2 {[%clk 0:00:20.8]} 39. Qc3 {[%clk 0:00:02.1]}
39... Rde2 {[%clk 0:00:15.6]} 40. Rxc2 {[%clk 0:00:02.8]} 40... Rxc2 {[%clk
0:00:15.9]} 41. Qxc2 {[%clk 0:00:03.2]} 41... Re8 {[%clk 0:00:16.8]} 42. Qc5
{[%clk 0:00:03.7]} 42... dxc5 {[%clk 0:00:16.5]} 0-1

[Event "*** Titled Tuesday Blitz"]
[Site "Chess.com"]
[Date "2020.03.03"]
[Round "4"]
[White "FelixJoseYnojosa"]
[Black "Orest_Vovk"]
[Result "0-1"]
[WhiteElo "2678"]
[BlackElo "2533"]
[TimeControl "180+1"]
[EndTime "9:42:45 PST"]
[Termination "Orest_Vovk won on time"]

1. e4 {[%clk 0:02:59.5]} 1... e5 {[%clk 0:02:59.6]} 2. Nf3 {[%clk 0:02:56.5]}
2... Nf6 {[%clk 0:02:59.6]} 3. Nc3 {[%clk 0:02:55]} 3... Nc6 {[%clk 0:02:58.9]}
4. Bc4 {[%clk 0:02:53.5]} 4... Bc5 {[%clk 0:02:58.7]} 5. d3 {[%clk 0:02:53.3]}
5... d6 {[%clk 0:02:58.8]} 6. Bg5 {[%clk 0:02:53.1]} 6... h6 {[%clk 0:02:57.9]}
7. Bxf6 {[%clk 0:02:53.4]} 7... Qxf6 {[%clk 0:02:57.6]} 8. Nd5 {[%clk
0:02:53.9]} 8... Qd8 {[%clk 0:02:57.5]} 9. c3 {[%clk 0:02:54.4]} 9... Ne7 {[%clk
0:02:55.3]} 10. b4 {[%clk 0:02:53.4]} 10... Nxd5 {[%clk 0:02:51.3]} 11. bxc5
{[%clk 0:02:48.5]} 11... Nf4 {[%clk 0:02:50.9]} 12. g3 {[%clk 0:02:46.4]} 12...
Nh3 {[%clk 0:02:44.6]} 13. cxd6 {[%clk 0:02:37.8]} 13... cxd6 {[%clk 0:02:36.2]}
14. Qa4+ {[%clk 0:02:35.2]} 14... Bd7 {[%clk 0:02:30.6]} 15. Bb5 {[%clk
0:02:35.1]} 15... a6 {[%clk 0:02:23.8]} 16. Bxd7+ {[%clk 0:02:34.6]} 16... Qxd7
{[%clk 0:02:24.7]} 17. Qxd7+ {[%clk 0:02:31.1]} 17... Kxd7 {[%clk 0:02:25.6]}
18. Rb1 {[%clk 0:02:30.4]} 18... b5 {[%clk 0:02:20.5]} 19. Nd2 {[%clk
0:02:29.8]} 19... Rhc8 {[%clk 0:02:15.4]} 20. c4 {[%clk 0:02:29.5]} 20... Ng5
{[%clk 0:02:06.2]} 21. f4 {[%clk 0:02:14]} 21... Ne6 {[%clk 0:02:01.3]} 22. O-O
{[%clk 0:01:42]} 22... f6 {[%clk 0:01:52.2]} 23. h4 {[%clk 0:01:24.1]} 23... Nd4
{[%clk 0:01:48.9]} 24. Kh2 {[%clk 0:01:15.6]} 24... Rab8 {[%clk 0:01:32.7]} 25.
h5 {[%clk 0:01:15.5]} 25... Rc7 {[%clk 0:01:13.5]} 26. Kh3 {[%clk 0:00:42]}
26... Rcb7 {[%clk 0:01:10.1]} 27. Kg4 {[%clk 0:00:39.8]} 27... Nc2 {[%clk
0:00:45.5]} 28. Rfc1 {[%clk 0:00:31]} 28... Nd4 {[%clk 0:00:38.9]} 29. c5 {[%clk
0:00:25.6]} 29... Rc7 {[%clk 0:00:26.6]} 30. cxd6 {[%clk 0:00:23.2]} 30... Rxc1
{[%clk 0:00:25.5]} 31. Rxc1 {[%clk 0:00:24.1]} 31... Kxd6 {[%clk 0:00:26]} 32.
fxe5+ {[%clk 0:00:24.4]} 32... fxe5 {[%clk 0:00:24.8]} 33. Nf1 {[%clk
0:00:18.7]} 33... a5 {[%clk 0:00:20.9]} 34. Ne3 {[%clk 0:00:18.8]} 34... a4
{[%clk 0:00:20.1]} 35. a3 {[%clk 0:00:16.7]} 35... Ke6 {[%clk 0:00:17.8]} 36.
Rc7 {[%clk 0:00:14.8]} 36... b4 {[%clk 0:00:15.3]} 37. axb4 {[%clk 0:00:15.7]}
37... Ra8 {[%clk 0:00:14.7]} 38. Nc4 {[%clk 0:00:04.3]} 38... a3 {[%clk
0:00:13.4]} 39. Nxa3 {[%clk 0:00:04.5]} 39... Rxa3 {[%clk 0:00:12.7]} 40. Rxg7
{[%clk 0:00:05.1]} 40... Rxd3 {[%clk 0:00:12.7]} 41. Rg6+ {[%clk 0:00:05.7]}
41... Kf7 {[%clk 0:00:12.6]} 42. Rxh6 {[%clk 0:00:06.2]} 42... Rb3 {[%clk
0:00:09.9]} 43. Rb6 {[%clk 0:00:06.3]} 43... Ne2 {[%clk 0:00:05.5]} 44. h6
{[%clk 0:00:04.4]} 44... Rxg3+ {[%clk 0:00:04.5]} 45. Kf5 {[%clk 0:00:04.5]}
45... Rh3 {[%clk 0:00:04.3]} 46. Kxe5 {[%clk 0:00:04.3]} 46... Rh5+ {[%clk
0:00:04.2]} 47. Kd6 {[%clk 0:00:03.3]} 47... Rxh6+ {[%clk 0:00:04.4]} 48. Kc7
{[%clk 0:00:04]} 48... Rh4 {[%clk 0:00:04.5]} 49. e5 {[%clk 0:00:03.3]} 49...
Re4 {[%clk 0:00:02.4]} 50. Kd7 {[%clk 0:00:02]} 50... Nf4 {[%clk 0:00:01.9]} 0-1

[Event "*** Titled Tuesday Blitz"]
[Site "Chess.com"]
[Date "2020.03.03"]
[Round "4"]
[White "vaishali2001"]
[Black "Arystanner"]
[Result "0-1"]
[WhiteElo "2487"]
[BlackElo "2739"]
[TimeControl "180+1"]
[EndTime "9:42:50 PST"]
[Termination "Arystanner won by resignation"]

1. e4 {[%clk 0:03:00.9]} 1... e5 {[%clk 0:03:00.1]} 2. Nf3 {[%clk 0:03:00.5]}
2... Nc6 {[%clk 0:03:00.5]} 3. Nc3 {[%clk 0:03:01]} 3... Nf6 {[%clk 0:03:00.5]}
4. Bb5 {[%clk 0:03:01.7]} 4... Bd6 {[%clk 0:03:00.3]} 5. O-O {[%clk 0:02:58.8]}
5... a6 {[%clk 0:03:00.4]} 6. Bc4 {[%clk 0:02:58.1]} 6... O-O {[%clk 0:02:56.8]}
7. d3 {[%clk 0:02:58.3]} 7... h6 {[%clk 0:02:56.6]} 8. a3 {[%clk 0:02:56.9]}
8... Bc5 {[%clk 0:02:56.4]} 9. Be3 {[%clk 0:02:57.4]} 9... d6 {[%clk 0:02:55.7]}
10. Qd2 {[%clk 0:02:50.1]} 10... Bg4 {[%clk 0:02:52]} 11. Bxh6 {[%clk
0:02:23.5]} 11... Bxf3 {[%clk 0:02:51.5]} 12. Qg5 {[%clk 0:02:22.1]} 12... Ne8
{[%clk 0:02:51.6]} 13. gxf3 {[%clk 0:01:57.3]} 13... Nd4 {[%clk 0:02:47.1]} 14.
Kg2 {[%clk 0:01:56.7]} 14... Qf6 {[%clk 0:02:25.9]} 15. Qxf6 {[%clk 0:01:43.6]}
15... Nxf6 {[%clk 0:02:26.8]} 16. Bg5 {[%clk 0:01:41.6]} 16... Nh5 {[%clk
0:02:20.1]} 17. Nd5 {[%clk 0:01:39.5]} 17... c6 {[%clk 0:02:19.5]} 18. Ne7+
{[%clk 0:01:39.2]} 18... Kh7 {[%clk 0:02:20]} 19. c3 {[%clk 0:01:38.3]} 19...
Ne6 {[%clk 0:02:14.8]} 20. h4 {[%clk 0:01:29.1]} 20... d5 {[%clk 0:02:07.9]} 21.
exd5 {[%clk 0:01:27.4]} 21... Nxg5 {[%clk 0:02:08.4]} 22. hxg5 {[%clk
0:01:24.3]} 22... Bxe7 {[%clk 0:02:04.6]} 23. Rh1 {[%clk 0:01:16.2]} 23... Kg6
{[%clk 0:01:59.4]} 24. Rae1 {[%clk 0:01:16.8]} 24... cxd5 {[%clk 0:01:56.5]} 25.
Rxe5 {[%clk 0:01:08.4]} 25... dxc4 {[%clk 0:01:51]} 26. Rxe7 {[%clk 0:01:07.7]}
26... cxd3 {[%clk 0:01:49.9]} 27. Re4 {[%clk 0:00:58.5]} 27... Rad8 {[%clk
0:01:36.4]} 28. f4 {[%clk 0:00:58.7]} 28... d2 {[%clk 0:01:26.2]} 29. Rd1 {[%clk
0:00:57.3]} 29... Rd3 {[%clk 0:01:24.1]} 30. f3 {[%clk 0:00:53.5]} 30... Kf5
{[%clk 0:01:15.7]} 31. Re7 {[%clk 0:00:45.7]} 31... Nxf4+ {[%clk 0:01:14.2]} 32.
Kg3 {[%clk 0:00:46.3]} 32... Kxg5 {[%clk 0:01:00.1]} 33. Rxb7 {[%clk 0:00:44.7]}
33... Rh8 {[%clk 0:00:59.9]} 34. Rxf7 {[%clk 0:00:41.6]} 34... Rh3+ {[%clk
0:01:00.1]} 35. Kf2 {[%clk 0:00:40.7]} 35... Rh2+ {[%clk 0:01:00.5]} 36. Kg1
{[%clk 0:00:36.3]} 36... Rg2+ {[%clk 0:01:00.2]} 37. Kh1 {[%clk 0:00:36.5]}
37... Re2 {[%clk 0:01:00.1]} 38. Rg1+ {[%clk 0:00:30.3]} 38... Rg2 {[%clk
0:00:49]} 39. Rd1 {[%clk 0:00:26]} 39... Rg3 {[%clk 0:00:31.3]} 40. Rxg7+ {[%clk
0:00:18.9]} 40... Ng6 {[%clk 0:00:31.6]} 41. Rf7 {[%clk 0:00:12.2]} 41... Kh4
{[%clk 0:00:18.6]} 42. Rh7+ {[%clk 0:00:11.2]} 42... Kg5 {[%clk 0:00:19]} 43.
Rf7 {[%clk 0:00:11.8]} 43... Ne5 {[%clk 0:00:19]} 44. f4+ {[%clk 0:00:10]} 44...
Kg6 {[%clk 0:00:15.5]} 45. Rf8 {[%clk 0:00:09.7]} 45... Ng4 {[%clk 0:00:15.4]}
46. Rg8+ {[%clk 0:00:02.2]} 46... Kf7 {[%clk 0:00:15.7]} 47. Rf8+ {[%clk
0:00:02.9]} 47... Kxf8 {[%clk 0:00:15.7]} 0-1

[Event "*** Titled Tuesday Blitz"]
[Site "Chess.com"]
[Date "2020.03.03"]
[Round "4"]
[White "letsgoband"]
[Black "vlad10898"]
[Result "0-1"]
[WhiteElo "2488"]
[BlackElo "2679"]
[TimeControl "180+1"]
[EndTime "9:42:50 PST"]
[Termination "vlad10898 won by resignation"]

1. e4 {[%clk 0:02:23.4]} 1... c5 {[%clk 0:02:59.1]} 2. Nf3 {[%clk 0:02:24.1]}
2... d6 {[%clk 0:02:59.5]} 3. Bb5+ {[%clk 0:02:23.7]} 3... Nd7 {[%clk
0:02:59.3]} 4. d4 {[%clk 0:02:21.8]} 4... cxd4 {[%clk 0:02:58.9]} 5. Qxd4 {[%clk
0:02:21.5]} 5... a6 {[%clk 0:02:59.5]} 6. Bxd7+ {[%clk 0:02:21.3]} 6... Bxd7
{[%clk 0:03:00.4]} 7. O-O {[%clk 0:02:20.4]} 7... e5 {[%clk 0:02:58.4]} 8. Qd3
{[%clk 0:02:20.2]} 8... h6 {[%clk 0:02:58.9]} 9. c4 {[%clk 0:02:20.1]} 9... b5
{[%clk 0:02:58.6]} 10. Nc3 {[%clk 0:02:19.6]} 10... bxc4 {[%clk 0:02:27.2]} 11.
Qxc4 {[%clk 0:02:19.6]} 11... Nf6 {[%clk 0:02:28]} 12. Rd1 {[%clk 0:02:18.1]}
12... Be7 {[%clk 0:02:26.6]} 13. Ne1 {[%clk 0:02:05.2]} 13... O-O {[%clk
0:02:22.7]} 14. Nc2 {[%clk 0:02:05.7]} 14... Be6 {[%clk 0:02:21.6]} 15. Qe2
{[%clk 0:02:04.6]} 15... Qb8 {[%clk 0:02:14.2]} 16. Ne3 {[%clk 0:02:03.4]} 16...
Rc8 {[%clk 0:02:08.3]} 17. Ned5 {[%clk 0:02:03.5]} 17... Qb7 {[%clk 0:02:08.4]}
18. b3 {[%clk 0:02:00]} 18... Rc6 {[%clk 0:02:01.2]} 19. Ba3 {[%clk 0:01:55.7]}
19... Rac8 {[%clk 0:01:53.4]} 20. Nxe7+ {[%clk 0:01:51.7]} 20... Qxe7 {[%clk
0:01:53.1]} 21. Nd5 {[%clk 0:01:52.6]} 21... Bxd5 {[%clk 0:01:37.4]} 22. exd5
{[%clk 0:01:53.5]} 22... Rb6 {[%clk 0:01:38]} 23. Rac1 {[%clk 0:01:44.6]} 23...
Qb7 {[%clk 0:01:37.4]} 24. Rxc8+ {[%clk 0:01:15.4]} 24... Qxc8 {[%clk
0:01:38.3]} 25. h3 {[%clk 0:01:11.6]} 25... Qb7 {[%clk 0:01:32.1]} 26. Qd3
{[%clk 0:01:11.1]} 26... g6 {[%clk 0:00:48.3]} 27. Qf3 {[%clk 0:01:06.8]} 27...
Kg7 {[%clk 0:00:46.9]} 28. Bc1 {[%clk 0:01:07.3]} 28... Ng8 {[%clk 0:00:42.1]}
29. h4 {[%clk 0:01:05.5]} 29... h5 {[%clk 0:00:37.1]} 30. Bg5 {[%clk 0:00:56.3]}
30... f6 {[%clk 0:00:34.1]} 31. Bc1 {[%clk 0:00:53.6]} 31... Ne7 {[%clk
0:00:31.7]} 32. g3 {[%clk 0:00:47.3]} 32... Rb5 {[%clk 0:00:29.4]} 33. Ba3
{[%clk 0:00:47.6]} 33... Nf5 {[%clk 0:00:24.9]} 34. Qe4 {[%clk 0:00:44.7]} 34...
Ra5 {[%clk 0:00:14.8]} 35. Bb4 {[%clk 0:00:42.9]} 35... Rxa2 {[%clk 0:00:15]}
36. Qb1 {[%clk 0:00:43.6]} 36... Re2 {[%clk 0:00:11.8]} 37. Kf1 {[%clk
0:00:44.2]} 37... Qb5 {[%clk 0:00:10.9]} 38. Qd3 {[%clk 0:00:38.6]} 38... Qxd3
{[%clk 0:00:10.9]} 39. Rxd3 {[%clk 0:00:39.5]} 39... Rb2 {[%clk 0:00:10.3]} 40.
Ba5 {[%clk 0:00:39]} 40... Rc2 {[%clk 0:00:08.5]} 41. Bd8 {[%clk 0:00:39.1]}
41... Kf7 {[%clk 0:00:07.4]} 42. Kg2 {[%clk 0:00:39.3]} 42... Nd4 {[%clk
0:00:07.7]} 43. Bb6 {[%clk 0:00:38.5]} 43... Nb5 {[%clk 0:00:07.9]} 44. Kf3
{[%clk 0:00:37.6]} 44... Rc3 {[%clk 0:00:08.2]} 45. Ke2 {[%clk 0:00:37.2]} 45...
Rxd3 {[%clk 0:00:05]} 46. Kxd3 {[%clk 0:00:38.1]} 46... Ke7 {[%clk 0:00:05.5]}
47. f3 {[%clk 0:00:38.6]} 47... Kd7 {[%clk 0:00:05]} 48. g4 {[%clk 0:00:39.2]}
48... Nc7 {[%clk 0:00:05.1]} 49. Kc4 {[%clk 0:00:38.7]} 49... f5 {[%clk
0:00:04.7]} 50. gxh5 {[%clk 0:00:37.7]} 50... gxh5 {[%clk 0:00:04.8]} 51. Be3
{[%clk 0:00:37.2]} 51... Ne8 {[%clk 0:00:04.9]} 52. Bg5 {[%clk 0:00:37.1]} 52...
Nc7 {[%clk 0:00:04.5]} 53. Be3 {[%clk 0:00:33.8]} 53... Na8 {[%clk 0:00:04.8]}
54. Bf2 {[%clk 0:00:33.6]} 54... Kc7 {[%clk 0:00:05.2]} 55. Be3 {[%clk
0:00:34.1]} 55... Nb6+ {[%clk 0:00:05.5]} 56. Bxb6+ {[%clk 0:00:32.6]} 56...
Kxb6 {[%clk 0:00:06.4]} 57. Kb4 {[%clk 0:00:32.7]} 57... e4 {[%clk 0:00:04.8]}
58. fxe4 {[%clk 0:00:32.9]} 58... fxe4 {[%clk 0:00:05.7]} 59. Kc4 {[%clk
0:00:33.8]} 59... Ka5 {[%clk 0:00:06.3]} 60. Kd4 {[%clk 0:00:34.2]} 60... Kb4
{[%clk 0:00:06.9]} 61. Kxe4 {[%clk 0:00:34.9]} 61... Kxb3 {[%clk 0:00:07.6]} 62.
Kf5 {[%clk 0:00:35.5]} 62... a5 {[%clk 0:00:08.3]} 63. Ke6 {[%clk 0:00:36.4]}
63... a4 {[%clk 0:00:09.2]} 64. Kxd6 {[%clk 0:00:37.3]} 64... a3 {[%clk
0:00:10.1]} 65. Ke7 {[%clk 0:00:38.2]} 65... a2 {[%clk 0:00:10.9]} 66. d6 {[%clk
0:00:39.1]} 66... a1=Q {[%clk 0:00:11.8]} 67. d7 {[%clk 0:00:40]} 67... Qe5+
{[%clk 0:00:12.1]} 68. Kf8 {[%clk 0:00:40.3]} 68... Qf6+ {[%clk 0:00:11.6]} 69.
Ke8 {[%clk 0:00:40.7]} 69... Qxh4 {[%clk 0:00:12.1]} 70. d8=Q {[%clk 0:00:41.3]}
70... Qxd8+ {[%clk 0:00:11.7]} 71. Kxd8 {[%clk 0:00:42.2]} 71... h4 {[%clk
0:00:12.6]} 0-1

[Event "*** Titled Tuesday Blitz"]
[Site "Chess.com"]
[Date "2020.03.03"]
[Round "4"]
[White "GM_shahin"]
[Black "albi1999"]
[Result "0-1"]
[WhiteElo "2747"]
[BlackElo "2586"]
[TimeControl "180+1"]
[EndTime "9:42:58 PST"]
[Termination "albi1999 won by resignation"]

1. e4 {[%clk 0:02:59.8]} 1... c6 {[%clk 0:02:58.5]} 2. Nf3 {[%clk 0:02:58.8]}
2... d5 {[%clk 0:02:59.4]} 3. exd5 {[%clk 0:02:59.3]} 3... cxd5 {[%clk
0:02:59.9]} 4. Ne5 {[%clk 0:02:59.8]} 4... Nf6 {[%clk 0:02:58.5]} 5. d4 {[%clk
0:02:59.6]} 5... g6 {[%clk 0:02:58.5]} 6. Bb5+ {[%clk 0:02:57]} 6... Nbd7 {[%clk
0:02:57.8]} 7. c3 {[%clk 0:02:55.2]} 7... Bg7 {[%clk 0:02:55.4]} 8. O-O {[%clk
0:02:53]} 8... O-O {[%clk 0:02:54.9]} 9. Re1 {[%clk 0:02:52.4]} 9... Ne4 {[%clk
0:02:54.3]} 10. Nf3 {[%clk 0:02:43.5]} 10... Ndf6 {[%clk 0:02:53]} 11. Bf4
{[%clk 0:02:39.6]} 11... Qb6 {[%clk 0:02:48.7]} 12. Qb3 {[%clk 0:02:37]} 12...
Ng4 {[%clk 0:02:28.3]} 13. Re2 {[%clk 0:02:09.9]} 13... e5 {[%clk 0:01:57.6]}
14. Nxe5 {[%clk 0:02:08.4]} 14... Nxe5 {[%clk 0:01:56.9]} 15. dxe5 {[%clk
0:01:56.1]} 15... Bg4 {[%clk 0:01:49.6]} 16. Be3 {[%clk 0:01:54.2]} 16... Nc5
{[%clk 0:01:46.4]} 17. Bxc5 {[%clk 0:01:34.8]} 17... Qxc5 {[%clk 0:01:47.3]} 18.
Re1 {[%clk 0:01:28.3]} 18... d4 {[%clk 0:01:45.3]} 19. cxd4 {[%clk 0:01:03.3]}
19... Qxd4 {[%clk 0:01:46.1]} 20. Nc3 {[%clk 0:01:03.7]} 20... Bxe5 {[%clk
0:01:40.8]} 21. Re4 {[%clk 0:01:02.6]} 21... Be6 {[%clk 0:01:26.1]} 22. Rxd4
{[%clk 0:00:52.9]} 22... Bxb3 {[%clk 0:01:25.6]} 23. Rd7 {[%clk 0:00:44.7]}
23... Be6 {[%clk 0:01:19.4]} 24. Rxb7 {[%clk 0:00:39.3]} 24... Rab8 {[%clk
0:01:19.5]} 25. Bc6 {[%clk 0:00:12.8]} 25... Rxb7 {[%clk 0:01:15.7]} 26. Bxb7
{[%clk 0:00:13.6]} 26... Rb8 {[%clk 0:01:16.1]} 27. Bd5 {[%clk 0:00:05.8]} 27...
Rxb2 {[%clk 0:01:15.8]} 28. Bxe6 {[%clk 0:00:05.6]} 28... fxe6 {[%clk
0:00:48.8]} 29. Nd1 {[%clk 0:00:05.8]} 29... Re2 {[%clk 0:00:48.8]} 30. Kf1
{[%clk 0:00:06.1]} 30... Rxf2+ {[%clk 0:00:48.9]} 31. Kxf2 {[%clk 0:00:05.6]}
31... Bxa1 {[%clk 0:00:49.8]} 32. Ke3 {[%clk 0:00:05.5]} 32... e5 {[%clk
0:00:41.6]} 33. Ke4 {[%clk 0:00:05.4]} 33... Bd4 {[%clk 0:00:42.2]} 34. h3
{[%clk 0:00:01.6]} 34... Kf7 {[%clk 0:00:42]} 35. a4 {[%clk 0:00:02.3]} 35... a5
{[%clk 0:00:38.8]} 36. g4 {[%clk 0:00:03.2]} 36... h6 {[%clk 0:00:35.4]} 37. Kd5
{[%clk 0:00:03.3]} 37... Kf6 {[%clk 0:00:33.5]} 38. h4 {[%clk 0:00:03.2]} 38...
h5 {[%clk 0:00:30.7]} 39. gxh5 {[%clk 0:00:01.3]} 39... gxh5 {[%clk 0:00:31.6]}
40. Ke4 {[%clk 0:00:01.6]} 40... Ke6 {[%clk 0:00:32]} 41. Kd3 {[%clk 0:00:01.1]}
41... Kd5 {[%clk 0:00:28.7]} 42. Ke2 {[%clk 0:00:01.5]} 42... Ke4 {[%clk
0:00:27.8]} 43. Kd2 {[%clk 0:00:02.2]} 43... Kf4 {[%clk 0:00:26.4]} 44. Kd3
{[%clk 0:00:03.1]} 44... Kg4 {[%clk 0:00:22.1]} 45. Kc4 {[%clk 0:00:00.9]} 45...
Kxh4 {[%clk 0:00:22.2]} 46. Kb5 {[%clk 0:00:01.5]} 46... Kg3 {[%clk 0:00:22]}
47. Kxa5 {[%clk 0:00:02.1]} 47... h4 {[%clk 0:00:22]} 48. Kb4 {[%clk 0:00:02.6]}
48... h3 {[%clk 0:00:22.3]} 49. a5 {[%clk 0:00:03.1]} 49... h2 {[%clk
0:00:22.4]} 50. a6 {[%clk 0:00:04]} 0-1

[Event "*** Titled Tuesday Blitz"]
[Site "Chess.com"]
[Date "2020.03.03"]
[Round "4"]
[White "Pultis"]
[Black "Chigorinetz"]
[Result "1-0"]
[WhiteElo "2780"]
[BlackElo "2573"]
[TimeControl "180+1"]
[EndTime "9:43:02 PST"]
[Termination "Pultis won by resignation"]

1. Nf3 {[%clk 0:03:00.9]} 1... d5 {[%clk 0:02:57.9]} 2. g3 {[%clk 0:03:00.1]}
2... Nc6 {[%clk 0:02:57]} 3. d4 {[%clk 0:02:59.4]} 3... Bf5 {[%clk 0:02:56.2]}
4. Bg2 {[%clk 0:02:59.1]} 4... Nb4 {[%clk 0:02:56.2]} 5. Na3 {[%clk 0:02:58.9]}
5... e6 {[%clk 0:02:56]} 6. O-O {[%clk 0:02:58.9]} 6... Nf6 {[%clk 0:02:55]} 7.
Ne5 {[%clk 0:02:48]} 7... c6 {[%clk 0:02:47.8]} 8. c3 {[%clk 0:02:42.3]} 8...
Na6 {[%clk 0:02:46.6]} 9. Qa4 {[%clk 0:02:42.9]} 9... Nc7 {[%clk 0:02:34.1]} 10.
Bf4 {[%clk 0:02:40.4]} 10... Bd6 {[%clk 0:02:30.8]} 11. Qb3 {[%clk 0:02:05]}
11... Rb8 {[%clk 0:02:26.2]} 12. Rae1 {[%clk 0:01:50.2]} 12... O-O {[%clk
0:02:23.6]} 13. f3 {[%clk 0:01:50.6]} 13... c5 {[%clk 0:02:20]} 14. e4 {[%clk
0:01:45]} 14... c4 {[%clk 0:01:56.2]} 15. Qa4 {[%clk 0:01:30.2]} 15... Bxa3
{[%clk 0:01:54.8]} 16. Qxa3 {[%clk 0:01:31.1]} 16... Bg6 {[%clk 0:01:47.2]} 17.
Qxa7 {[%clk 0:01:23.4]} 17... Qc8 {[%clk 0:01:39]} 18. Qb6 {[%clk 0:01:17.7]}
18... Na8 {[%clk 0:01:35.1]} 19. Qd6 {[%clk 0:01:15.3]} 19... Rd8 {[%clk
0:01:24]} 20. Nxg6 {[%clk 0:01:13.4]} 20... hxg6 {[%clk 0:01:19.5]} 21. Qxb8
{[%clk 0:01:13.4]} 21... Qxb8 {[%clk 0:01:15.7]} 22. Bxb8 {[%clk 0:01:14.3]}
22... Rxb8 {[%clk 0:01:15.6]} 23. e5 {[%clk 0:00:56.8]} 23... Nd7 {[%clk
0:01:13.7]} 24. f4 {[%clk 0:00:55.2]} 24... b5 {[%clk 0:01:12.5]} 25. a3 {[%clk
0:00:55.3]} 25... Nab6 {[%clk 0:01:10.2]} 26. g4 {[%clk 0:00:54.7]} 26... Na4
{[%clk 0:01:09.1]} 27. Rf2 {[%clk 0:00:54.8]} 27... Kf8 {[%clk 0:01:07.1]} 28.
h4 {[%clk 0:00:54.2]} 28... Ke7 {[%clk 0:01:05.9]} 29. Bf3 {[%clk 0:00:53.6]}
29... Rh8 {[%clk 0:01:03.5]} 30. Rh2 {[%clk 0:00:53]} 30... f5 {[%clk
0:01:01.5]} 31. exf6+ {[%clk 0:00:38.2]} 31... gxf6 {[%clk 0:00:58.3]} 32. Bxd5
{[%clk 0:00:37.3]} 32... Nf8 {[%clk 0:00:57.5]} 33. f5 {[%clk 0:00:34.7]} 33...
gxf5 {[%clk 0:00:53.8]} 34. gxf5 {[%clk 0:00:34.2]} 34... e5 {[%clk 0:00:54.7]}
35. dxe5 {[%clk 0:00:34]} 35... fxe5 {[%clk 0:00:53.8]} 36. Rxe5+ {[%clk
0:00:13.5]} 36... Kf6 {[%clk 0:00:52.5]} 37. Re8 {[%clk 0:00:12.6]} 37... Nb6
{[%clk 0:00:46.9]} 38. Be6 {[%clk 0:00:12.2]} 38... Na4 {[%clk 0:00:41.6]} 39.
h5 {[%clk 0:00:11.9]} 39... Kg5 {[%clk 0:00:35.1]} 40. h6 {[%clk 0:00:11.6]}
40... Kf6 {[%clk 0:00:33.9]} 41. h7 {[%clk 0:00:10.4]} 41... Kg7 {[%clk
0:00:33.2]} 42. Re7+ {[%clk 0:00:09.6]} 42... Kf6 {[%clk 0:00:27.6]} 43. Rf7+
{[%clk 0:00:10.5]} 43... Ke5 {[%clk 0:00:27.7]} 44. Rxf8 {[%clk 0:00:11.4]}
44... Rxf8 {[%clk 0:00:25.8]} 45. h8=Q+ {[%clk 0:00:12.3]} 45... Rxh8 {[%clk
0:00:26.7]} 46. Rxh8 {[%clk 0:00:13.2]} 46... Nxb2 {[%clk 0:00:25.5]} 47. Rb8
{[%clk 0:00:13.7]} 47... Nd1 {[%clk 0:00:21.8]} 48. Rxb5+ {[%clk 0:00:13.3]}
48... Kf6 {[%clk 0:00:20.9]} 49. Rc5 {[%clk 0:00:12.5]} 49... Nxc3 {[%clk
0:00:19.7]} 50. Rxc4 {[%clk 0:00:13.4]} 50... Nb5 {[%clk 0:00:20.6]} 51. a4
{[%clk 0:00:13.3]} 51... Nd6 {[%clk 0:00:20.3]} 52. a5 {[%clk 0:00:13.7]} 52...
Nxc4 {[%clk 0:00:17.9]} 53. Bxc4 {[%clk 0:00:14.6]} 53... Kxf5 {[%clk
0:00:18.5]} 54. a6 {[%clk 0:00:15.2]} 54... Ke5 {[%clk 0:00:16.6]} 55. a7 {[%clk
0:00:15.3]} 1-0